fUSD/lending_fUSD_20260227
["ID","MTS","AMOUNT","RATE_DAILY","PERIOD"]
[406834238,1772214642719,-500.0,0.0001289,2]
[406834240,1772214642729,-500.0,0.0001289,2]
[406834242,1772214642737,-500.0,0.0001289,2]
[406834244,1772214642748,-500.0,0.0001289,2]
[406834245,1772214642757,-500.0,0.0001289,2]
[406834246,1772214642767,-500.0,0.0001289,2]
[406834247,1772214642778,-500.0,0.0001289,2]
[406834248,1772214642788,-500.0,0.0001289,2]
[406834249,1772214642797,-500.0,0.0001289,2]
[406834250,1772214642806,-500.0,0.0001289,2]
[406834251,1772214642815,-500.0,0.0001289,2]
[406834252,1772214642825,-500.0,0.0001289,2]
[406834253,1772214642835,-500.0,0.0001289,2]
[406834254,1772214642845,-500.0,0.0001289,2]
[406834255,1772214642856,-500.0,0.0001289,2]
[406834256,1772214642865,-611.11529278,0.0001289,2]
[406834257,1772214642875,-500.0,0.0001289,2]
[406834258,1772214642886,-500.0,0.0001289,2]
[406834259,1772214642895,-500.0,0.0001289,2]
[406834260,1772214642904,-500.0,0.0001289,2]
[406834261,1772214642913,-500.0,0.0001289,2]
[406834262,1772214642922,-500.0,0.0001289,2]
[406834263,1772214642931,-500.0,0.0001289,2]
[406834264,1772214642943,-500.0,0.0001289,2]
[406834265,1772214642954,-500.0,0.0001289,2]
[406834266,1772214642963,-500.0,0.0001289,2]
[406834267,1772214642974,-500.0,0.0001289,2]
[406834268,1772214642984,-869.88788903,0.0001289,2]
[406834269,1772214642995,-500.0,0.0001289,2]
[406834270,1772214643003,-500.0,0.0001289,2]
[406834272,1772214643012,-500.0,0.0001289,2]
[406834273,1772214643022,-500.0,0.0001289,2]
[406834275,1772214643031,-500.0,0.0001289,2]
[406834277,1772214643042,-19352.50108021,0.00012917,2]
[406834279,1772214643052,-1486.48,0.00013014,2]
[406834281,1772214643061,-1500.0,0.0001302,2]
[406834282,1772214643071,-320.22794059,0.0001302,2]
[406834283,1772214643080,-1486.48,0.00013288,2]
[406834284,1772214643090,-200.0,0.00013288,2]
[406834286,1772214643099,-500.0,0.00013397,2]
[406834288,1772214643109,-500.0,0.00013397,2]
[406834290,1772214643118,-500.0,0.00013397,2]
[406834291,1772214643127,-500.0,0.00013397,2]
[406834293,1772214643136,-429.651187,0.00013451,2]
[406834295,1772214643145,-500.0,0.00013452,2]
[406834296,1772214643155,-500.0,0.00013452,2]
[406834297,1772214643164,-500.0,0.00013452,2]
[406834298,1772214643173,-500.0,0.00013452,2]
[406834299,1772214643182,-500.0,0.00013507,2]
[406834302,1772214643325,-500.0,0.00013507,2]
[406834303,1772214643335,-164.37590583,0.00013507,2]
[406834304,1772214643344,-500.0,0.00013507,2]
[406834305,1772214643353,-500.0,0.00013561,2]
[406834306,1772214643363,-500.0,0.00013561,2]
[406834307,1772214643372,-500.0,0.00013561,2]
[406834308,1772214643382,-1486.48,0.00013562,2]
[406834309,1772214643392,-500.0,0.00013616,2]
[406834310,1772214643404,-500.0,0.00013616,2]
[406834311,1772214643414,-500.0,0.00013616,2]
[406834312,1772214643423,-2593.11556322,0.00013654,2]
[406834313,1772214643431,-500.0,0.00013671,2]
[406834314,1772214643440,-399.73245123,0.00013671,2]
[406834315,1772214643450,-500.0,0.00013671,2]
[406834316,1772214643459,-645.74125194,0.00013698,2]
[406834317,1772214643469,-500.0,0.00013698,2]
[406834318,1772214643478,-500.0,0.00013698,2]
[406834319,1772214643488,-500.0,0.00013698,2]
[406834320,1772214643498,-500.0,0.00013698,2]
[406834321,1772214643507,-500.0,0.00013698,2]
[406834322,1772214643516,-500.0,0.00013698,2]
[406834323,1772214643525,-500.0,0.00013698,2]
[406834324,1772214643534,-500.0,0.00013698,2]
[406834325,1772214643544,-500.0,0.00013698,2]
[406834326,1772214643553,-500.0,0.00013698,2]
[406834327,1772214643562,-500.0,0.00013698,2]
[406834328,1772214643572,-500.0,0.00013698,2]
[406834329,1772214643581,-500.0,0.00013698,2]
[406834330,1772214643591,-500.0,0.00013698,2]
[406834331,1772214643600,-500.0,0.00013698,2]
[406834332,1772214643609,-500.0,0.00013698,2]
[406834333,1772214643618,-500.0,0.00013698,2]
[406834334,1772214643628,-500.0,0.00013698,2]
[406834335,1772214643637,-500.0,0.00013698,2]
[406834336,1772214643646,-500.0,0.00013698,2]
[406834337,1772214643655,-500.0,0.00013698,2]
[406834338,1772214643665,-500.0,0.00013698,2]
[406834339,1772214643674,-500.0,0.00013698,2]
[406834340,1772214643684,-500.0,0.00013698,2]
[406834341,1772214643693,-500.0,0.00013698,2]
[406834342,1772214643702,-559.25629826,0.00013698,2]
[406834343,1772214643712,-500.0,0.00013698,2]
[406834344,1772214643721,-500.0,0.00013698,2]
[406834345,1772214643730,-500.0,0.00013698,2]
[406834346,1772214643740,-500.0,0.00013698,2]
[406834347,1772214643754,-210.48,0.00013698,2]
[406834348,1772214643773,-500.0,0.00013698,2]
[406834349,1772214643787,-500.0,0.00013698,2]
[406834350,1772214643797,-500.0,0.00013698,2]
[406834351,1772214643806,-500.0,0.00013698,2]
[406834352,1772214643815,-500.0,0.00013698,2]
[406834353,1772214643823,-500.0,0.00013698,2]
[406834354,1772214643832,-500.0,0.00013698,2]
[406834355,1772214643842,-500.0,0.00013698,2]
[406834356,1772214643851,-500.0,0.00013698,2]
[406834357,1772214643862,-500.0,0.00013698,2]
[406834358,1772214643872,-500.0,0.00013698,2]
[406834359,1772214643881,-500.0,0.00013698,2]
[406834360,1772214643890,-500.0,0.00013698,2]
[406834361,1772214643900,-500.0,0.00013698,2]
[406834362,1772214643909,-500.0,0.00013698,2]
[406834363,1772214643919,-500.0,0.00013698,2]
[406834364,1772214643929,-500.0,0.00013698,2]
[406834365,1772214643938,-500.0,0.00013698,2]
[406834366,1772214643947,-500.0,0.00013698,2]
[406834367,1772214643957,-500.0,0.00013698,2]
[406834368,1772214643966,-500.0,0.00013698,2]
[406834369,1772214643975,-500.0,0.00013698,2]
[406834370,1772214643984,-500.0,0.00013698,2]
[406834371,1772214643994,-479.11436236,0.00013698,2]
[406834372,1772214644003,-500.0,0.00013698,2]
[406834373,1772214644013,-50000.0,0.00013699,2]
[406834374,1772214644022,-500.0,0.00013726,2]
[406834375,1772214644031,-500.0,0.00013726,2]
[406834376,1772214644041,-806.17,0.00013779,2]
[406834377,1772214644050,-500.0,0.00013781,2]
[406834378,1772214644059,-500.0,0.00013781,2]
[406834379,1772214644067,-8648.08704016,0.00013826,2]
[406834380,1772214644076,-500.0,0.00013835,2]
[406834381,1772214644085,-500.0,0.00013835,2]
[406834382,1772214644095,-1486.48,0.00013836,2]
[406834383,1772214644104,-200.0,0.00013836,2]
[406834384,1772214644113,-500.0,0.0001389,2]
[406834385,1772214644122,-500.0,0.0001389,2]
[406834386,1772214644131,-151.0,0.0001391,2]
[406834387,1772214644140,-19352.50108021,0.00013913,2]
[406834388,1772214644149,-500.0,0.00013918,2]
[406834389,1772214644158,-497.09622115,0.00013945,2]
[406834390,1772214644167,-500.0,0.00013945,2]
[406834391,1772214644176,-500.0,0.00014,2]
[406834392,1772214644185,-500.0,0.00014055,2]
[406834393,1772214644194,-500.0,0.00014109,2]
[406834394,1772214644203,-1486.50057164,0.0001411,2]
[406834395,1772214644212,-500.0,0.00014164,2]
[406834396,1772214644221,-500.0,0.00014219,2]
[406834397,1772214644229,-500.0,0.00014274,2]
[406834398,1772214644239,-500.0,0.00014329,2]
[406834399,1772214644249,-357.0,0.00014383,2]
[406834400,1772214644258,-200.0,0.00014384,2]
[406834401,1772214644267,-1000.0,0.00014765,7]
[406834402,1772214644276,-8648.08704016,0.00014844,2]
[406834403,1772214644285,-509.0,0.0001489,2]
[406834404,1772214644294,-19352.50108021,0.0001491,2]
[406834405,1772214644303,-200.0,0.00014932,2]
[406834406,1772214644312,-874.83,0.00015068,2]
[406834407,1772214644321,-500.0,0.00015205,2]
[406834408,1772214644329,-500.0,0.00015233,2]
[406834409,1772214644339,-500.0,0.00015233,2]
[406834410,1772214644348,-599.83,0.00015342,2]
[406834411,1772214644357,-396.81,0.00015386,2]
[406834412,1772214644366,-200.0,0.0001548,2]
[406834413,1772214644375,-245.38,0.00015808,2]
[406834414,1772214644385,-8648.08704016,0.00015863,2]
[406834415,1772214644394,-19352.50108021,0.00015907,2]
[406834416,1772214644405,-200.0,0.00016028,2]
[406834417,1772214644414,-174.00015664,0.00016038,2]
[406834418,1772214644424,-396.81,0.00016156,2]
[406834419,1772214644432,-158.83553081,0.00016438,2]
[406834420,1772214644442,-518.0,0.00016438,2]
[406834421,1772214644452,-518.0,0.00016493,2]
[406834422,1772214644461,-518.0,0.00016548,2]
[406834423,1772214644470,-200.0,0.00016576,2]
[406834424,1772214644481,-518.0,0.00016602,2]
[406834425,1772214644490,-214.78,0.00016634,2]
[406834426,1772214644500,-518.0,0.00016657,2]
[406834427,1772214644509,-219.789585,0.00016706,7]
[406834428,1772214644518,-518.0,0.00016712,2]
[406834429,1772214644527,-500.0,0.00016712,2]
[406834430,1772214644536,-214.78,0.00016743,2]
[406834431,1772214644546,-518.0,0.00016767,2]
[406834432,1772214644555,-214.78,0.00016805,14]
[406834433,1772214644564,-518.0,0.00016822,2]
[406834434,1772214644574,-518.0,0.00016876,2]
[406834435,1772214644584,-8648.08704016,0.00016881,2]
[406834436,1772214644593,-19352.50108021,0.00016903,2]
[406834437,1772214644602,-396.81,0.00016925,2]
[406834438,1772214644611,-518.0,0.00016931,2]
[406834439,1772214644621,-2911.819172,0.00016972,7]
[406834440,1772214644630,-518.0,0.00016986,2]
[406834441,1772214644639,-518.0,0.00017041,2]
[406834442,1772214644647,-518.0,0.00017096,2]
[406834443,1772214644659,-200.0,0.00017124,2]
[406834444,1772214644668,-518.0,0.0001715,2]
[406834445,1772214644677,-1432.170623,0.00017163,7]
[406834446,1772214644686,-715.158413,0.00017163,7]
[406834447,1772214644696,-518.0,0.00017205,2]
[406834448,1772214644705,-518.0,0.0001726,2]
[406834449,1772214644720,-518.0,0.00017315,2]
[406834450,1772214644734,-518.0,0.0001737,2]
[406834451,1772214644744,-518.0,0.00017424,2]
[406834452,1772214644755,-518.0,0.00017479,2]
[406834453,1772214644765,-518.0,0.00017534,2]
[406834454,1772214644775,-701.0,0.0001758,2]
[406834455,1772214644784,-150.0,0.0001758,2]
[406834456,1772214644793,-251.0,0.0001758,2]
[406834457,1772214644802,-518.0,0.00017589,2]
[406834458,1772214644813,-2000.0,0.0001759,2]
[406834459,1772214644822,-518.0,0.00017643,2]
[406834460,1772214644831,-200.0,0.00017672,2]
[406834461,1772214644840,-423.54897496,0.00017673,2]
[406834462,1772214644849,-480.98,0.00017679,2]
[406834463,1772214644858,-151.0,0.0001768,2]
[406834464,1772214644867,-21460.7605701,0.00017683,2]
[406834465,1772214644877,-1238702.1217857,0.00017683,2]
[406834466,1772214644886,-455.065068,0.00017683,2]
[406834467,1772214644895,-151.0,0.00017683,2]
[406834468,1772214644904,-455.065068,0.00017683,2]
[406834469,1772214644914,-455.065068,0.00017683,2]
[406834470,1772214644924,-455.065068,0.00017683,2]
[406834471,1772214644933,-1111.9599696,0.00017683,2]
[406834472,1772214644942,-151.0,0.00017683,2]
[406834473,1772214644952,-151.0,0.00017683,2]
[406834474,1772214644961,-151.0,0.00017683,2]
[406834475,1772214644970,-151.0,0.00017683,2]
[406834476,1772214644979,-151.0,0.00017683,2]
[406834477,1772214644988,-151.0,0.00017683,2]
[406834478,1772214644998,-151.0,0.00017683,2]
[406834479,1772214645008,-151.0,0.00017683,2]
[406834480,1772214645018,-1415.4330026,0.00017686,2]
[406834481,1772214645026,-2000.0,0.0001769,2]
[406834482,1772214645036,-396.81,0.00017694,2]
[406834483,1772214645045,-480.98,0.00017698,2]
[406834484,1772214645054,-526.01719171,0.00017698,2]
[406834485,1772214645063,-480.98,0.00017744,2]
[406834486,1772214645072,-480.98,0.00017788,2]
[406834487,1772214645081,-2000.0,0.0001779,2]
[406834488,1772214645093,-10000.0,0.00017797,2]
[406834489,1772214645103,-8100.0,0.000178,6]
[406834490,1772214645112,-5000.0,0.00017808,2]
[406834491,1772214645121,-500.0,0.00017808,2]
[406834492,1772214645130,-480.98,0.00017859,2]
[406834493,1772214645139,-500.0,0.00017863,2]
[406834494,1772214645150,-611.16,0.00017896,2]
[406834495,1772214645160,-182.24,0.00017896,2]
[406834496,1772214645169,-480.98,0.00017897,2]
[406834497,1772214645178,-200.0,0.00017897,2]
[406834498,1772214645187,-1000.0,0.00017897,2]
[406834499,1772214645197,-1000.0,0.00017897,2]
[406834500,1772214645206,-1000.0,0.00017897,2]
[406834501,1772214645215,-1000.0,0.00017897,2]
[406834502,1772214645225,-612.14922787,0.00017897,2]
[406834503,1772214645234,-19352.50108021,0.000179,2]
[406834504,1772214645243,-1600.0,0.000179,6]
[406834505,1772214645253,-8648.08704016,0.000179,2]
[406834506,1772214645262,-480.98,0.00017904,2]
[406834507,1772214645271,-500.0,0.00017918,2]
[406834508,1772214645284,-312.46872602,0.00017922,2]
[406834509,1772214645294,-168.0,0.00017929,2]
[406834510,1772214645303,-1002.519436,0.00017935,7]
[406834511,1772214645313,-480.98,0.00017941,2]
[406834512,1772214645322,-500.0,0.00017972,2]
[406834513,1772214645332,-500.0,0.00017973,2]
[406834514,1772214645341,-500.0,0.00017973,2]
[406834515,1772214645350,-500.82123681,0.00017973,2]
[406834516,1772214645359,-502.2190815,0.00017973,2]
[406834517,1772214645368,-500.0,0.00017973,2]
[406834518,1772214645378,-501.97857854,0.00017973,2]
[406834519,1772214645387,-500.0,0.00017973,2]
[406834520,1772214645397,-500.0,0.00017973,2]
[406834521,1772214645406,-500.0,0.00017973,2]
[406834522,1772214645420,-500.0,0.00017973,2]
[406834524,1772214645430,-500.0,0.00017973,2]
[406834525,1772214645439,-500.0,0.00017973,2]
[406834526,1772214645449,-505.28465419,0.00017973,2]
[406834527,1772214645459,-504.75046136,0.00017973,2]
[406834528,1772214645468,-500.0,0.00017973,2]
[406834529,1772214645478,-500.0,0.00017973,2]
[406834530,1772214645490,-500.0,0.00017973,2]
[406834531,1772214645501,-502.48858977,0.00017973,2]
[406834532,1772214645512,-500.0,0.00017973,2]
[406834533,1772214645522,-500.0,0.00017973,2]
[406834534,1772214645531,-500.0,0.00017973,2]
[406834535,1772214645541,-500.0,0.00017973,2]
[406834536,1772214645551,-500.0,0.00017973,2]
[406834537,1772214645561,-500.0,0.00017973,2]
[406834538,1772214645571,-501.50601316,0.00017973,2]
[406834539,1772214645580,-500.0,0.00017973,2]
[406834540,1772214645590,-500.0,0.00017973,2]
[406834541,1772214645600,-504.20237615,0.00017973,2]
[406834542,1772214645609,-500.0,0.00017973,2]
[406834543,1772214645619,-500.0,0.00017973,2]
[406834544,1772214645629,-500.0,0.00017973,2]
[406834545,1772214645638,-500.0,0.00017973,2]
[406834546,1772214645647,-564.44693438,0.00017973,2]
[406834547,1772214645657,-500.0,0.00017973,2]
[406834548,1772214645667,-500.0,0.00017973,2]
[406834549,1772214645677,-500.0,0.00017973,2]
[406834550,1772214645690,-500.0,0.00017973,2]
[406834551,1772214645698,-555.40539763,0.00017973,2]
[406834552,1772214645708,-500.0,0.00017973,2]
[406834553,1772214645717,-504.17214118,0.00017973,2]
[406834554,1772214645727,-500.0,0.00017973,2]
[406834555,1772214645737,-507.14846603,0.00017973,2]
[406834556,1772214645746,-310.9054072,0.00017973,2]
[406834557,1772214645755,-505.53161927,0.00017973,2]
[406834558,1772214645765,-151.0,0.00017973,2]
[406834559,1772214645775,-480.98,0.00017985,2]
[406834560,1772214645784,-423.54897496,0.0001799,2]
[406834561,1772214645794,-255.57222519,0.00017997,2]
[406834562,1772214645804,-150.0,0.00017999,2]
[406834563,1772214645813,-150.0,0.00017999,2]
[406834564,1772214645822,-150.0,0.00017999,2]
[406834565,1772214645832,-150.0,0.00017999,2]
[406834566,1772214645841,-150.0,0.00017999,2]
[406834567,1772214645850,-150.0,0.00017999,2]
[406834568,1772214645859,-150.0,0.00017999,2]
[406834569,1772214645868,-150.0,0.00017999,2]
[406834570,1772214645880,-259.36390494,0.00017999,2]
[406834571,1772214645890,-2565901.52419175,0.00018,2]
[406834572,1772214645900,-485500.27955049,0.00018,2]
[406834573,1772214645910,-230.22651953,0.00018,2]
[406834574,1772214645919,-151.0,0.00018,2]
[406834575,1772214645929,-151.0,0.00018,2]
[406834576,1772214645938,-151.0,0.00018,2]
[406834577,1772214645948,-151.0,0.00018,2]
[406834578,1772214645957,-151.0,0.00018,2]
[406834579,1772214645966,-151.0,0.00018,2]
[406834580,1772214645975,-151.0,0.00018,2]
[406834581,1772214645984,-151.0,0.00018,2]
[406834582,1772214645993,-151.0,0.00018,2]
[406834583,1772214646003,-251.081794,0.00018,2]
[406834584,1772214646012,-151.0,0.00018,2]
[406834585,1772214646021,-531.562921,0.00018,2]
[406834586,1772214646031,-531.562921,0.00018,2]
[406834587,1772214646040,-531.562921,0.00018,2]
[406834588,1772214646049,-531.562921,0.00018,2]
[406834589,1772214646059,-151.0,0.00018,2]
[406834590,1772214646071,-151.0,0.00018,2]
[406834591,1772214646080,-455.065068,0.00018,2]
[406834592,1772214646090,-151.0,0.00018,2]
[406834593,1772214646099,-455.065068,0.00018,2]
[406834594,1772214646109,-455.065068,0.00018,2]
[406834595,1772214646118,-455.065068,0.00018,2]
[406834596,1772214646127,-151.0,0.00018,2]
[406834597,1772214646136,-151.0,0.00018,2]
[406834598,1772214646145,-151.0,0.00018,2]
[406834599,1772214646154,-202.440074,0.00018,2]
[406834600,1772214646163,-151.0,0.00018,2]
[406834601,1772214646172,-500.0,0.00018027,2]
[406834602,1772214646182,-480.98,0.00018029,2]
[406834603,1772214646190,-168.0,0.0001806,2]
[406834604,1772214646200,-480.98,0.00018074,2]
[406834605,1772214646210,-200.0,0.00018076,2]
[406834606,1772214646219,-500.0,0.00018082,2]
[406834607,1772214646229,-245.38,0.0001811,2]
[406834608,1772214646238,-480.98,0.00018117,2]
[406834609,1772214646446,-168.0,0.00018123,2]
[406834610,1772214646457,-200.139566,0.00018128,2]
[406834611,1772214646467,-500.0,0.00018137,2]
[406834612,1772214646479,-480.98,0.00018162,2]
[406834613,1772214646488,-500.0,0.00018192,2]
[406834614,1772214646500,-168.0,0.00018209,2]
[406834615,1772214646509,-480.98,0.00018216,2]
[406834616,1772214646519,-200.0,0.0001822,2]
[406834617,1772214646529,-480.98,0.0001826,2]
[406834618,1772214646538,-168.0,0.00018261,2]
[406834619,1772214646548,-168.0,0.000183,2]
[406834620,1772214646558,-480.98,0.00018303,2]
[406834622,1772214646568,-481.04943592,0.00018307,2]
[406834624,1772214646577,-168.0,0.00018394,2]
[406834626,1772214646587,-396.81,0.00018464,2]
[406834628,1772214646597,-168.0,0.00018509,2]
[406834629,1772214646606,-2593.11556322,0.00018575,2]
[406834630,1772214646615,-168.0,0.00018628,2]
[406834632,1772214646625,-168.0,0.00018748,2]
[406834634,1772214646635,-200.0,0.00018768,2]
[406834636,1772214646644,-501.01,0.00018829,2]
[406834637,1772214646653,-500.0,0.00018829,2]
[406834639,1772214646662,-563.9784206,0.00018829,2]
[406834640,1772214646671,-500.0,0.00018829,2]
[406834641,1772214646681,-297.82549676,0.00018829,2]
[406834642,1772214646690,-500.0,0.00018849,2]
[406834643,1772214646699,-168.0,0.0001887,2]
[406834644,1772214646708,-4858.9780023,0.00019,2]
[406834645,1772214646717,-312.22,0.00019178,30]
[406834646,1772214646726,-151.0,0.00019178,2]
[406834647,1772214646737,-200.0,0.00019316,2]
[406834648,1772214646748,-200.0,0.00019864,2]
[406834649,1772214646758,-603.68912324,0.00019999,2]
[406834650,1772214646767,-585.28187735,0.00019999,2]
[406834651,1772214646780,-238.81109851,0.00019999,2]
[406834652,1772214646789,-500.0,0.00019999,2]
[406834653,1772214646798,-500.0,0.00019999,2]
[406834654,1772214646808,-500.0,0.00019999,2]
[406834655,1772214646818,-500.0,0.00019999,2]
[406834656,1772214646827,-500.0,0.00019999,2]
[406834657,1772214646837,-500.0,0.00019999,2]
[406834658,1772214646846,-500.0,0.00019999,2]
[406834659,1772214646856,-212.06527939,0.00019999,2]
[406834660,1772214646865,-500.0,0.00019999,2]
[406834661,1772214646875,-500.0,0.00019999,2]
[406834662,1772214646884,-500.0,0.00019999,2]
[406834663,1772214646894,-500.0,0.00019999,2]
[406834664,1772214646903,-500.0,0.00019999,2]
[406834665,1772214646913,-500.0,0.00019999,2]
[406834666,1772214646922,-500.0,0.00019999,2]
[406834667,1772214646932,-550.0,0.00019999,2]
[406834668,1772214646941,-202.72622012,0.00020412,2]
[406834669,1772214646950,-751.0,0.00020759,2]
[406834670,1772214646960,-150.0,0.00020759,2]
[406834671,1772214646970,-150.0,0.00020759,2]
[406834672,1772214646979,-151.0,0.00020759,2]
[406834673,1772214646989,-82226.0,0.000208,2]
[406834674,1772214647002,-500.0,0.00020849,2]
[406834675,1772214647012,-4788.5429429,0.0002107,2]
[406834676,1772214647022,-276391.8028102,0.0002124,2]
[406834677,1772214647032,-509.0,0.00021401,7]
[406834678,1772214647042,-5531.0,0.000217,3]
[406834679,1772214647051,-163.59,0.00021798,2]
[406834680,1772214647062,-1068.4683537,0.00021826,2]
[406834681,1772214647071,-150.36,0.00021918,30]
[406834682,1772214647081,-5000.0,0.00021918,2]
[406834683,1772214647091,-61671.3472247,0.00022034,2]
[406834684,1772214647100,-213.66,0.00022589,7]
[406834685,1772214647109,-5531.0,0.000226,5]
[406834686,1772214647119,-2778.74,0.0002274,2]
[406834687,1772214647129,-500.0,0.00022744,2]
[406834688,1772214647139,-500.0,0.00022744,2]
[406834689,1772214647149,-163.59,0.00023184,2]
[406834690,1772214647158,-500.0,0.00023198,2]
[406834691,1772214647168,-2593.11556322,0.00023496,2]
[406834692,1772214647177,-150.36,0.00024201,30]
[406834693,1772214647186,-500.0,0.00024329,2]
[406834694,1772214647195,-151.06985257,0.00024359,7]
[406834695,1772214647205,-704.05283368,0.00024519,18]
[406834696,1772214647214,-163.58107403,0.0002457,2]
[406834697,1772214647224,-1000.0,0.00024658,2]
[406834698,1772214647233,-150.0,0.00024658,2]
[406834699,1772214647242,-500.0,0.00025191,2]
[406834700,1772214647253,-500.0,0.00025191,2]
[406834701,1772214647262,-174.61919141,0.00025191,2]
[406834702,1772214647272,-500.0,0.00025191,2]
[406834703,1772214647281,-500.0,0.00025191,2]
[406834704,1772214647290,-500.0,0.00025191,2]
[406834705,1772214647299,-500.0,0.00025191,2]
[406834706,1772214647308,-500.0,0.00025191,2]
[406834707,1772214647317,-500.0,0.00025191,2]
[406834708,1772214647327,-500.0,0.00025191,2]
[406834709,1772214647336,-644.79446246,0.00025191,2]
[406834710,1772214647345,-500.0,0.00025191,2]
[406834711,1772214647354,-250.0,0.00025191,2]
[406834712,1772214647364,-500.0,0.00025191,2]
[406834713,1772214647373,-250.0,0.00025191,2]
[406834714,1772214647383,-500.0,0.00025191,2]
[406834715,1772214647391,-250.0,0.00025191,2]
[406834716,1772214647401,-500.0,0.00025191,2]
[406834717,1772214647411,-250.0,0.00025191,2]
[406834718,1772214647422,-250.0,0.00025191,2]
[406834719,1772214647432,-250.0,0.00025191,2]
[406834720,1772214647442,-250.0,0.00025191,2]
[406834721,1772214647452,-250.0,0.00025191,2]
[406834722,1772214647461,-250.0,0.00025191,2]
[406834723,1772214647471,-250.0,0.00025191,2]
[406834724,1772214647481,-250.0,0.00025191,2]
[406834725,1772214647493,-250.0,0.00025191,2]
[406834726,1772214647504,-250.0,0.00025191,2]
[406834727,1772214647514,-500.0,0.00025191,2]
[406834728,1772214647523,-500.0,0.00025191,2]
[406834729,1772214647532,-500.0,0.00025191,2]
[406834730,1772214647542,-500.0,0.00025191,2]
[406834731,1772214647551,-500.0,0.00025191,2]
[406834732,1772214647561,-500.0,0.00025191,2]
[406834733,1772214647570,-500.0,0.00025191,2]
[406834734,1772214647579,-151.0,0.00025191,2]
[406834735,1772214647588,-500.0,0.00025191,2]
[406834736,1772214647598,-151.0,0.00025191,2]
[406834737,1772214647607,-500.0,0.00025191,2]
[406834738,1772214647616,-151.0,0.00025191,2]
[406834739,1772214647626,-500.0,0.00025191,2]
[406834740,1772214647636,-151.0,0.00025191,2]
[406834741,1772214647645,-151.0,0.00025191,2]
[406834742,1772214647654,-500.0,0.00025191,2]
[406834743,1772214647663,-151.0,0.00025191,2]
[406834744,1772214647672,-500.0,0.00025191,2]
[406834745,1772214647682,-151.0,0.00025191,2]
[406834746,1772214647691,-500.0,0.00025191,2]
[406834747,1772214647700,-151.0,0.00025191,2]
[406834748,1772214647709,-151.0,0.00025191,2]
[406834749,1772214647719,-151.0,0.00025191,2]
[406834750,1772214647728,-151.0,0.00025191,2]
[406834751,1772214647738,-151.0,0.00025191,2]
[406834752,1772214647747,-151.0,0.00025191,2]
[406834753,1772214647757,-668.65185757,0.00025246,2]
[406834754,1772214647766,-693.3919763,0.00025301,2]
[406834755,1772214647776,-719.04747942,0.00025356,2]
[406834756,1772214647785,-745.65223616,0.00025411,2]
[406834757,1772214647794,-773.2413689,0.00025466,2]
[406834758,1772214647803,-801.85129955,0.00025521,2]
[406834759,1772214647813,-831.51979763,0.00025576,2]
[406834760,1772214647821,-862.28603014,0.00025631,2]
[406834761,1772214647831,-894.19061326,0.00025686,2]